[Event "FIDE WYCC Girls U14 2023"]
[Site "Montesilvano"]
[Date "2023.11.16"]
[Round "4.15"]
[White "Zhang, Michelle"]
[Black "Haapsal, Maria Ioanna"]
[Result "1-0"]
[ECO "B34"]
[WhiteElo "1833"]
[BlackElo "1597"]
[Annotator "NA RC"]
[PlyCount "89"]
[EventDate "2023.11.13"]
[EventType "swiss"]
[EventCountry "ITA"]
[SourceTitle "playchess.com"]
[Source "ChessBase"]
[SourceQuality "1"]
[TimeControl "40/5400+30:1800+30"]

1. e4 {[%emt 0:00:15]} c5 {[%emt 0:00:15]} 2. Nf3 {[%emt 0:00:38]} Nc6 {[%emt 0:00:26]} 3. d4 {[%emt 0:01:33]} cxd4 {[%emt 0:00:16]} 4. Nxd4 {[%emt 0:00:37]} Nf6 {[%emt 0:00:31]} 5. Nc3 {[%emt 0:01:42]} e5 {[%emt 0:00:30]} 6. Ndb5 {[%emt 0:01:26]} d6 {[%emt 0:00:46]} 7. a4 {[%emt 0:02:58]} a6 {[%emt 0:03:17]} 8. Na3 {[%emt 0:00:57]} Be7 {[%emt 0:01:44]} 9. Bg5 {[%emt 0:05:53]} Be6 {[%emt 0:02:52]} 10. Bxf6 {[%emt 0:00:43]} Bxf6 {[%emt 0:05:41]} 11. Bc4 {[%emt 0:02:01]} O-O {[%emt 0:03:18]} 12. O-O {[%emt 0:00:21]} Bg5 {[%emt 0:03:10]} 13. Nd5 {[%emt 0:04:21]} g6 {[%emt 0:01:39]} 14. c3 {[%emt 0:01:52]} Kh8 {[%emt 0:01:20]} 15. Kh1 {[%emt 0:18:16]} Bh6 {[%emt 0:11:14]} 16. f4 {[%emt 0:14:43]} f5 {[%emt 0:04:52]} 17. exf5 {[%emt 0:09:34]} gxf5 {[%emt 0:03:10]} 18. g3 {[%emt 0:08:35]} Rc8 {[%emt 0:10:25]} 19. Qh5 {[%emt 0:04:47]} Bg7 {[%emt 0:15:06]} 20. Rad1 {[%emt 0:03:48]} Bf7 {[%emt 0:04:01]} 21. Qe2 {[%emt 0:01:36]} Ne7 {[%emt 0:06:09]} 22. fxe5 {[%emt 0:04:32]} Rxc4 {[%emt 0:03:59]} 23. Nxc4 {[%emt 0:09:33]} Bxd5+ {[%emt 0:02:21]} 24. Kg1 {[%emt 0:00:16]} Bxc4 {[%emt 0:00:58]} 25. Qxc4 {[%emt 0:00:10]} Qb6+ {[%emt 0:01:09]} 26. Qd4 {[%emt 0:00:57]} Qxd4+ {[%emt 0:05:25]} 27. cxd4 {[%emt 0:00:06]} d5 {[%emt 0:00:21]} 28. Kg2 {[%emt 0:01:16]} Bh6 {[%emt 0:01:26]} 29. b4 {[%emt 0:00:41]} Rc8 {[%emt 0:00:27]} 30. b5 {[%emt 0:00:38]} a5 {[%emt 0:01:15]} 31. Rd3 {[%emt 0:00:33]} Rc4 {[%emt 0:01:27]} 32. Rfd1 {[%emt 0:00:30]} Nc8 {[%emt 0:01:45]} 33. h4 {[%emt 0:00:23]} Kg7 {[%emt 0:01:30]} 34. Kf3 {[%emt 0:00:38]} Nb6 35. g4 {[%emt 0:00:31]} fxg4+ {[%emt 0:03:31]} 36. Kxg4 {[%emt 0:00:15]} Nxa4 {[%emt 0:00:03]} 37. Kh5 {[%emt 0:00:35]} Bc1 {[%emt 0:01:11]} 38. Rf3 {[%emt 0:00:38]} Rc8 {[%emt 0:01:08]} 39. Rg1+ {[%emt 0:00:18]} Kh8 {[%emt 0:00:01]} 40. e6 {[%emt 0:00:00]} Nb6 {[%emt 0:00:00]} 41. e7 {[%emt 0:05:30]} Nd7 {[%emt 0:05:23]} 42. Rxc1 {[%emt 0:01:34]} Re8 {[%emt 0:00:55]} 43. Kh6 {[%emt 0:01:36]} a4 {[%emt 0:01:39]} 44. Rf7 {[%emt 0:01:01]} Nf6 {[%emt 0:00:35]} 45. Rxf6 {[%emt 0:00:15]} 1-0

[Event "FIDE WYCC Girls U14 2023"]
[Site "Montesilvano"]
[Date "2023.11.16"]
[Round "4.16"]
[White "Mkrtchyan, Anahit H."]
[Black "Sneha Halder"]
[Result "0-1"]
[ECO "C05"]
[WhiteElo "1630"]
[BlackElo "1807"]
[Annotator "NA RC"]
[PlyCount "74"]
[EventDate "2023.11.13"]
[EventType "swiss"]
[EventCountry "ITA"]
[SourceTitle "playchess.com"]
[Source "ChessBase"]
[SourceQuality "1"]
[TimeControl "40/5400+30:1800+30"]

1. e4 {[%emt 0:00:02]} e6 {[%emt 0:00:41]} 2. d4 {[%emt 0:00:04]} d5 {[%emt 0:00:03]} 3. Nd2 {[%emt 0:00:05]} Nf6 {[%emt 0:00:29]} 4. e5 {[%emt 0:00:06]} Nfd7 {[%emt 0:00:03]} 5. Bd3 {[%emt 0:00:05]} c5 {[%emt 0:00:04]} 6. c3 {[%emt 0:00:03]} Nc6 {[%emt 0:00:02]} 7. Ne2 {[%emt 0:00:07]} Qb6 {[%emt 0:00:28]} 8. Nf3 {[%emt 0:00:07]} f6 {[%emt 0:03:25]} 9. exf6 {[%emt 0:00:06]} Nxf6 {[%emt 0:00:13]} 10. O-O {[%emt 0:02:29]} cxd4 {[%emt 0:04:18]} 11. cxd4 {[%emt 0:00:05]} Be7 {[%emt 0:00:12]} 12. Re1 {[%emt 0:01:51]} O-O {[%emt 0:00:30]} 13. Nf4 {[%emt 0:00:59]} Bb4 {[%emt 0:03:58]} 14. Re2 {[%emt 0:16:04]} Re8 {[%emt 0:04:07]} 15. Bb1 {[%emt 0:09:00]} Bd7 {[%emt 0:01:37]} 16. h3 {[%emt 0:14:24]} Rac8 {[%emt 0:03:46]} 17. g4 {[%emt 0:17:58]} Bd6 {[%emt 0:16:55]} 18. g5 {[%emt 0:13:31]} Ne4 {[%emt 0:03:19]} 19. Bxe4 {[%emt 0:12:26]} dxe4 {[%emt 0:00:34]} 20. Rxe4 {[%emt 0:00:08]} Nb4 {[%emt 0:00:11]} 21. Qb3 {[%emt 0:02:07]} Nc2 {[%emt 0:01:18]} 22. Qxb6 {[%emt 0:03:11]} axb6 {[%emt 0:00:01]} 23. Rb1 {[%emt 0:00:09]} Bc6 {[%emt 0:00:02]} 24. d5 {[%emt 0:01:09]} exd5 {[%emt 0:00:16]} 25. Rxe8+ {[%emt 0:02:26]} Rxe8 {[%emt 0:00:17]} 26. Nd3 {[%emt 0:01:18]} d4 {[%emt 0:00:43]} 27. Nh4 {[%emt 0:01:19]} Bb5 {[%emt 0:00:36]} 28. Bf4 {[%emt 0:00:42]} Bxd3 {[%emt 0:04:37]} 29. Bxd6 {[%emt 0:00:05]} Be2 {[%emt 0:00:02]} 30. f3 {[%emt 0:00:52]} Ne3 {[%emt 0:06:44]} 31. b3 {[%emt 0:01:05]} Nd5 {[%emt 0:02:35]} 32. Kf2 {[%emt 0:01:51]} d3 {[%emt 0:00:06]} 33. Rb2 {[%emt 0:00:11]} Ne3 {[%emt 0:00:51]} 34. Ke1 {[%emt 0:00:47]} Rc8 {[%emt 0:00:44]} 35. Kd2 {[%emt 0:00:34]} Nd1 {[%emt 0:00:26]} 36. Rb1 {[%emt 0:00:13]} Rc2+ {[%emt 0:00:02]} 37. Ke1 {[%emt 0:00:09]} Nc3 {[%emt 0:00:02]} 0-1

[Event "FIDE WYCC Girls U14 2023"]
[Site "Montesilvano"]
[Date "2023.11.16"]
[Round "4.17"]
[White "Chasouraki, Chrysi"]
[Black "Li Chen, Helena Joana"]
[Result "1-0"]
[ECO "B40"]
[WhiteElo "1559"]
[BlackElo "1799"]
[Annotator "NA RC"]
[PlyCount "91"]
[EventDate "2023.11.13"]
[EventType "swiss"]
[EventCountry "ITA"]
[SourceTitle "playchess.com"]
[Source "ChessBase"]
[SourceQuality "1"]
[TimeControl "40/5400+30:1800+30"]

1. e4 {[%emt 0:00:03]} c5 {[%emt 0:00:04]} 2. Nf3 {[%emt 0:00:04]} e6 {[%emt 0:00:05]} 3. d3 {[%emt 0:00:03]} Nc6 {[%emt 0:00:12]} 4. g3 {[%emt 0:00:05]} d5 {[%emt 0:00:17]} 5. Qe2 {[%emt 0:00:06]} Be7 {[%emt 0:02:34]} 6. Bg2 {[%emt 0:00:07]} Nf6 {[%emt 0:00:26]} 7. O-O {[%emt 0:00:06]} O-O {[%emt 0:00:17]} 8. e5 {[%emt 0:00:06]} Nd7 {[%emt 0:01:36]} 9. c4 {[%emt 0:00:05]} Qc7 {[%emt 0:01:58]} 10. Bf4 {[%emt 0:05:42]} d4 {[%emt 0:01:02]} 11. h4 {[%emt 0:00:25]} a6 {[%emt 0:01:21]} 12. Nbd2 {[%emt 0:03:10]} b5 {[%emt 0:01:21]} 13. b3 {[%emt 0:01:23]} Bb7 {[%emt 0:01:15]} 14. Rfe1 {[%emt 0:04:00]} Rab8 {[%emt 0:06:22]} 15. Nf1 {[%emt 0:12:25]} bxc4 {[%emt 0:04:55]} 16. bxc4 {[%emt 0:03:06]} Ba8 {[%emt 0:00:11]} 17. Ng5 {[%emt 0:08:32]} Bxg5 {[%emt 0:02:43]} 18. hxg5 {[%emt 0:00:15]} Rb6 {[%emt 0:02:34]} 19. Nh2 {[%emt 0:17:55]} Rfb8 {[%emt 0:02:41]} 20. Ng4 {[%emt 0:01:38]} Rb2 {[%emt 0:07:21]} 21. Qd1 {[%emt 0:03:42]} Kh8 {[%emt 0:13:08]} 22. Kh2 {[%emt 0:05:14]} Ne7 {[%emt 0:04:39]} 23. Bxa8 {[%emt 0:02:15]} Rxa8 {[%emt 0:00:08]} 24. Bc1 {[%emt 0:10:52]} Rb7 {[%emt 0:06:40]} 25. f4 {[%emt 0:02:03]} Qc6 {[%emt 0:02:02]} 26. Rh1 {[%emt 0:04:36]} Rab8 {[%emt 0:01:11]} 27. Nf2 {[%emt 0:07:31]} f6 {[%emt 0:11:27]} 28. gxf6 {[%emt 0:03:09]} gxf6 {[%emt 0:00:09]} 29. Qh5 {[%emt 0:02:02]} fxe5 {[%emt 0:08:31]} 30. Kg1 {[%emt 0:00:53]} Nf6 {[%emt 0:04:28]} 31. Qxe5 {[%emt 0:00:18]} Neg8 {[%emt 0:00:26]} 32. Ne4 {[%emt 0:00:28]} Rf8 {[%emt 0:02:12]} 33. Qxc5 {[%emt 0:02:20]} Qa4 {[%emt 0:01:42]} 34. Qxf8 {[%emt 0:01:17]} Nxe4 {[%emt 0:00:07]} 35. Ba3 {[%emt 0:01:04]} Nef6 {[%emt 0:02:12]} 36. Bd6 {[%emt 0:00:42]} Rg7 {[%emt 0:01:46]} 37. Rh3 {[%emt 0:00:43]} Nd7 {[%emt 0:01:05]} 38. Qa8 {[%emt 0:00:22]} Qc2 {[%emt 0:01:38]} 39. Qf3 {[%emt 0:00:19]} Ngf6 {[%emt 0:00:06]} 40. Be5 {[%emt 0:00:00]} Nxe5 {[%emt 0:00:00]} 41. fxe5 {[%emt 0:00:42]} Ng4 {[%emt 0:01:13]} 42. Rf1 {[%emt 0:02:39]} Nxe5 {[%emt 0:00:39]} 43. Qf8+ {[%emt 0:00:12]} Rg8 {[%emt 0:00:04]} 44. Qf6+ {[%emt 0:00:15]} Rg7 {[%emt 0:00:04]} 45. Qxe5 {[%emt 0:00:05]} Kg8 {[%emt 0:01:00]} 46. Qb8# {[%emt 0:00:06]} 1-0

[Event "FIDE WYCC Girls U14 2023"]
[Site "Montesilvano"]
[Date "2023.11.16"]
[Round "4.18"]
[White "Montano Vicente, Guadalupe"]
[Black "Sun, Wanyao Sarah"]
[Result "1-0"]
[ECO "D96"]
[WhiteElo "1794"]
[BlackElo "1593"]
[Annotator "NA RC"]
[PlyCount "113"]
[EventDate "2023.11.13"]
[EventType "swiss"]
[EventCountry "ITA"]
[SourceTitle "playchess.com"]
[Source "ChessBase"]
[SourceQuality "1"]
[TimeControl "40/5400+30:1800+30"]

1. d4 {[%emt 0:00:04]} Nf6 {[%emt 0:00:05]} 2. c4 {[%emt 0:00:03]} g6 {[%emt 0:00:06]} 3. Nc3 {[%emt 0:00:06]} d5 {[%emt 0:00:08]} 4. Nf3 {[%emt 0:00:08]} Bg7 {[%emt 0:00:11]} 5. Qb3 {[%emt 0:00:08]} dxc4 {[%emt 0:01:08]} 6. Qxc4 {[%emt 0:00:03]} Be6 {[%emt 0:00:35]} 7. Qd3 {[%emt 0:01:17]} O-O {[%emt 0:01:41]} 8. Ng5 {[%emt 0:02:32]} Bd7 {[%emt 0:01:27]} 9. e4 {[%emt 0:04:11]} Nc6 {[%emt 0:01:16]} 10. Be2 {[%emt 0:05:33]} h6 {[%emt 0:02:48]} 11. Nf3 {[%emt 0:00:44]} Bg4 {[%emt 0:05:28]} 12. Be3 {[%emt 0:05:30]} Ne8 {[%emt 0:03:28]} 13. e5 {[%emt 0:08:02]} Bf5 {[%emt 0:03:24]} 14. Qd2 {[%emt 0:00:33]} Nb4 {[%emt 0:00:54]} 15. Rc1 {[%emt 0:01:49]} h5 {[%emt 0:02:10]} 16. O-O {[%emt 0:05:59]} c6 {[%emt 0:02:11]} 17. Nh4 {[%emt 0:06:53]} Be6 {[%emt 0:00:54]} 18. a3 {[%emt 0:00:29]} Nd5 {[%emt 0:00:13]} 19. Bh6 {[%emt 0:04:07]} Nxc3 {[%emt 0:02:00]} 20. bxc3 {[%emt 0:00:21]} b5 {[%emt 0:01:31]} 21. Be3 {[%emt 0:04:36]} Bd5 {[%emt 0:05:42]} 22. c4 {[%emt 0:02:52]} bxc4 {[%emt 0:02:41]} 23. Bxc4 {[%emt 0:00:41]} e6 {[%emt 0:00:17]} 24. Bg5 {[%emt 0:04:04]} Qd7 {[%emt 0:00:21]} 25. Bxd5 {[%emt 0:00:13]} cxd5 {[%emt 0:02:05]} 26. Qa5 {[%emt 0:05:48]} Rb8 {[%emt 0:00:24]} 27. Bd2 {[%emt 0:02:24]} Kh7 {[%emt 0:04:08]} 28. Bb4 {[%emt 0:04:14]} Rg8 {[%emt 0:01:52]} 29. Bc5 {[%emt 0:00:18]} Bh6 {[%emt 0:02:21]} 30. Rb1 {[%emt 0:01:48]} Ra8 {[%emt 0:01:21]} 31. Rb3 {[%emt 0:02:22]} Ng7 {[%emt 0:02:36]} 32. Rfb1 {[%emt 0:01:09]} Nf5 {[%emt 0:02:52]} 33. Nxf5 {[%emt 0:08:14]} gxf5 {[%emt 0:00:08]} 34. Rb7 {[%emt 0:00:05]} Qe8 {[%emt 0:00:23]} 35. Qb5 {[%emt 0:00:15]} Qd8 {[%emt 0:01:47]} 36. Rxf7+ {[%emt 0:02:24]} Rg7 {[%emt 0:00:20]} 37. Rxg7+ {[%emt 0:00:08]} Bxg7 {[%emt 0:00:05]} 38. Qb7 {[%emt 0:00:55]} Qe8 {[%emt 0:00:53]} 39. h3 {[%emt 0:01:46]} f4 {[%emt 0:00:34]} 40. Rb3 {[%emt 0:00:00]} Rd8 {[%emt 0:00:00]} 41. Qb5 {[%emt 0:04:30]} Qf7 {[%emt 0:02:45]} 42. Qd3+ {[%emt 0:00:42]} Kh8 {[%emt 0:00:15]} 43. Qb1 {[%emt 0:00:40]} h4 {[%emt 0:05:03]} 44. Rb7 {[%emt 0:02:57]} Qh5 {[%emt 0:00:15]} 45. Qd3 {[%emt 0:00:38]} Rg8 {[%emt 0:00:49]} 46. Kh2 {[%emt 0:01:34]} Qg5 {[%emt 0:02:20]} 47. Be7 {[%emt 0:03:47]} Qh6 {[%emt 0:01:30]} 48. Rxa7 {[%emt 0:03:20]} Rb8 {[%emt 0:01:08]} 49. Bd6 {[%emt 0:01:34]} Rc8 {[%emt 0:01:11]} 50. a4 {[%emt 0:02:17]} Bf8 {[%emt 0:00:38]} 51. Bxf8 {[%emt 0:02:26]} Rxf8 {[%emt 0:00:11]} 52. Qf3 {[%emt 0:00:10]} Rf5 {[%emt 0:02:56]} 53. Rb7 {[%emt 0:02:30]} Qg6 {[%emt 0:02:19]} 54. Qg4 {[%emt 0:07:49]} Rg5 {[%emt 0:02:52]} 55. Qxh4+ {[%emt 0:00:21]} Kg8 {[%emt 0:00:09]} 56. Rb8+ {[%emt 0:00:02]} Kf7 {[%emt 0:00:21]} 57. Qxf4+ {[%emt 0:00:03]} 1-0

[Event "FIDE WYCC Girls U14 2023"]
[Site "Montesilvano"]
[Date "2023.11.16"]
[Round "4.19"]
[White "Avetisyan, Ani"]
[Black "Jiang, Hanxi"]
[Result "1-0"]
[ECO "A45"]
[WhiteElo "1770"]
[BlackElo "1575"]
[Annotator "NA RC"]
[PlyCount "74"]
[EventDate "2023.11.13"]
[EventType "swiss"]
[EventCountry "ITA"]
[SourceTitle "playchess.com"]
[Source "ChessBase"]
[SourceQuality "1"]
[TimeControl "40/5400+30:1800+30"]

1. d4 {[%emt 0:00:03]} Nf6 {[%emt 0:00:04]} 2. g3 {[%emt 0:00:09]} g6 {[%emt 0:00:04]} 3. Bg2 {[%emt 0:00:09]} Bg7 {[%emt 0:00:05]} 4. e4 {[%emt 0:00:09]} d6 {[%emt 0:00:38]} 5. Ne2 {[%emt 0:00:23]} O-O {[%emt 0:01:05]} 6. O-O {[%emt 0:00:43]} c5 {[%emt 0:02:17]} 7. Nbc3 {[%emt 0:02:43]} Nbd7 {[%emt 0:01:52]} 8. h3 {[%emt 0:03:33]} Rb8 {[%emt 0:03:59]} 9. a4 {[%emt 0:02:09]} Re8 {[%emt 0:05:44]} 10. Be3 {[%emt 0:02:35]} b6 {[%emt 0:05:02]} 11. Qd2 {[%emt 0:03:17]} a6 {[%emt 0:00:50]} 12. f4 {[%emt 0:03:14]} e5 {[%emt 0:07:51]} 13. dxe5 {[%emt 0:04:32]} dxe5 {[%emt 0:00:30]} 14. f5 {[%emt 0:01:36]} Nf8 {[%emt 0:04:48]} 15. Qxd8 {[%emt 0:06:15]} Rxd8 {[%emt 0:00:10]} 16. g4 {[%emt 0:00:06]} N8d7 {[%emt 0:04:22]} 17. g5 {[%emt 0:06:10]} Ne8 {[%emt 0:00:21]} 18. Nd5 {[%emt 0:04:13]} Bf8 {[%emt 0:04:10]} 19. h4 {[%emt 0:06:34]} Bb7 {[%emt 0:01:44]} 20. Rad1 {[%emt 0:05:28]} Nd6 {[%emt 0:12:52]} 21. Ng3 {[%emt 0:02:38]} Nc4 {[%emt 0:02:18]} 22. Bc1 {[%emt 0:01:05]} b5 {[%emt 0:04:40]} 23. axb5 {[%emt 0:04:56]} axb5 {[%emt 0:00:25]} 24. fxg6 {[%emt 0:04:38]} fxg6 {[%emt 0:01:49]} 25. Nc7 {[%emt 0:04:37]} Bc6 {[%emt 0:04:31]} 26. Bh3 {[%emt 0:02:26]} Be7 {[%emt 0:14:18]} 27. Be6+ {[%emt 0:03:10]} Kh8 {[%emt 0:00:12]} 28. Bxd7 {[%emt 0:00:33]} Bxd7 {[%emt 0:01:16]} 29. Rf7 {[%emt 0:01:21]} Bd6 {[%emt 0:02:55]} 30. b3 {[%emt 0:02:20]} Bxc7 {[%emt 0:05:25]} 31. Rdxd7 {[%emt 0:00:39]} Nb6 {[%emt 0:05:07]} 32. Rxc7 {[%emt 0:01:11]} Rd1+ {[%emt 0:00:52]} 33. Rf1 {[%emt 0:00:20]} Rbd8 {[%emt 0:00:23]} 34. Bb2 {[%emt 0:01:19]} Rxf1+ {[%emt 0:00:21]} 35. Nxf1 {[%emt 0:00:07]} Nd7 {[%emt 0:00:05]} 36. Ne3 {[%emt 0:00:11]} Kg8 {[%emt 0:00:21]} 37. Nd5 {[%emt 0:00:10]} Kf8 1-0

[Event "FIDE WYCC Girls U14 2023"]
[Site "Montesilvano"]
[Date "2023.11.16"]
[Round "4.20"]
[White "Romany, Joy"]
[Black "Suyamin, Bonjoure Fille"]
[Result "1-0"]
[ECO "A48"]
[WhiteElo "1764"]
[BlackElo "1570"]
[Annotator "NA RC"]
[PlyCount "123"]
[EventDate "2023.11.13"]
[EventType "swiss"]
[EventCountry "ITA"]
[SourceTitle "playchess.com"]
[Source "ChessBase"]
[SourceQuality "1"]
[TimeControl "40/5400+30:1800+30"]

1. d4 {[%emt 0:00:24]} Nf6 {[%emt 0:00:10]} 2. Nf3 {[%emt 0:00:09]} g6 {[%emt 0:00:14]} 3. Nbd2 {[%emt 0:04:27]} Bg7 {[%emt 0:00:47]} 4. e4 {[%emt 0:00:58]} d6 {[%emt 0:00:57]} 5. Bd3 {[%emt 0:02:05]} Nbd7 {[%emt 0:01:23]} 6. c3 {[%emt 0:02:44]} O-O {[%emt 0:03:05]} 7. O-O {[%emt 0:02:03]} Rb8 {[%emt 0:03:37]} 8. Qe2 {[%emt 0:07:49]} c5 {[%emt 0:03:03]} 9. a4 {[%emt 0:03:27]} Re8 {[%emt 0:04:12]} 10. Rd1 {[%emt 0:04:51]} Qc7 {[%emt 0:04:35]} 11. h3 {[%emt 0:05:59]} Nh5 {[%emt 0:02:33]} 12. Nc4 {[%emt 0:01:49]} b6 {[%emt 0:01:47]} 13. g4 {[%emt 0:08:20]} Nhf6 {[%emt 0:03:02]} 14. e5 {[%emt 0:01:06]} dxe5 {[%emt 0:01:44]} 15. dxe5 {[%emt 0:00:11]} Nd5 {[%emt 0:00:26]} 16. e6 {[%emt 0:02:13]} N7f6 {[%emt 0:02:34]} 17. exf7+ {[%emt 0:07:30]} Kxf7 {[%emt 0:00:14]} 18. Ng5+ {[%emt 0:00:41]} Kg8 {[%emt 0:00:33]} 19. Ne6 {[%emt 0:00:27]} Qc6 {[%emt 0:01:52]} 20. Nxg7 {[%emt 0:02:35]} Kxg7 {[%emt 0:00:06]} 21. Ne5 {[%emt 0:11:10]} Qe6 {[%emt 0:13:09]} 22. Re1 {[%emt 0:03:42]} Bb7 {[%emt 0:00:59]} 23. Qd2 {[%emt 0:01:43]} Ng8 {[%emt 0:05:35]} 24. Nxg6 {[%emt 0:02:09]} Qf6 {[%emt 0:00:30]} 25. Ne5 {[%emt 0:00:23]} Qh4 {[%emt 0:03:46]} 26. Qg5+ {[%emt 0:01:33]} Qxg5 {[%emt 0:00:11]} 27. Bxg5 {[%emt 0:00:02]} Ngf6 {[%emt 0:01:00]} 28. Bb5 {[%emt 0:01:45]} Rec8 {[%emt 0:01:22]} 29. Nd7 {[%emt 0:07:54]} Nxd7 {[%emt 0:09:52]} 30. Bxd7 {[%emt 0:00:02]} Rc7 {[%emt 0:00:18]} 31. Be6 {[%emt 0:00:51]} Re8 {[%emt 0:03:01]} 32. Rad1 {[%emt 0:01:12]} Nf6 {[%emt 0:02:53]} 33. Bf4 {[%emt 0:01:30]} Rc6 {[%emt 0:02:34]} 34. g5 {[%emt 0:00:54]} Rxe6 {[%emt 0:03:01]} 35. Rxe6 {[%emt 0:01:20]} Kf7 {[%emt 0:01:30]} 36. Ree1 {[%emt 0:02:08]} Nd5 {[%emt 0:01:48]} 37. Bg3 {[%emt 0:00:43]} Bc6 {[%emt 0:00:57]} 38. Re5 {[%emt 0:02:22]} e6 {[%emt 0:00:57]} 39. Rde1 {[%emt 0:01:27]} a6 {[%emt 0:01:23]} 40. f4 {[%emt 0:00:00]} Re7 {[%emt 0:00:00]} 41. f5 {[%emt 0:13:25]} exf5 {[%emt 0:04:05]} 42. Rxf5+ {[%emt 0:00:12]} Ke8 {[%emt 0:02:16]} 43. Rfe5 {[%emt 0:01:25]} Rxe5 {[%emt 0:01:24]} 44. Rxe5+ {[%emt 0:00:01]} Kf7 {[%emt 0:00:13]} 45. c4 {[%emt 0:06:25]} Nb4 {[%emt 0:00:58]} 46. b3 {[%emt 0:00:48]} Nc2 {[%emt 0:01:23]} 47. Rf5+ {[%emt 0:01:06]} Kg8 {[%emt 0:01:09]} 48. Rf6 {[%emt 0:00:44]} Nd4 {[%emt 0:01:42]} 49. Bf2 {[%emt 0:02:16]} Nf3+ {[%emt 0:02:47]} 50. Kf1 {[%emt 0:00:08]} Be4 {[%emt 0:02:14]} 51. Be3 {[%emt 0:01:27]} Ne5 {[%emt 0:02:27]} 52. Rxb6 {[%emt 0:00:48]} Bc2 {[%emt 0:01:48]} 53. Ke2 {[%emt 0:01:35]} a5 {[%emt 0:00:26]} 54. Kd2 {[%emt 0:01:01]} Bf5 {[%emt 0:00:15]} 55. Rb8+ {[%emt 0:00:45]} Kf7 {[%emt 0:00:12]} 56. Bxc5 {[%emt 0:00:50]} Bxh3 {[%emt 0:00:25]} 57. Be3 {[%emt 0:00:57]} Nc6 {[%emt 0:00:40]} 58. Rb7+ {[%emt 0:00:19]} Kg6 {[%emt 0:00:11]} 59. Rb6 {[%emt 0:00:45]} Bg2 {[%emt 0:00:10]} 60. Kc3 {[%emt 0:00:24]} Be4 {[%emt 0:00:46]} 61. Rxc6+ {[%emt 0:00:49]} Bxc6 {[%emt 0:00:23]} 62. Kd4 {[%emt 0:00:09]} 1-0

[Event "FIDE WYCC Girls U14 2023"]
[Site "Montesilvano"]
[Date "2023.11.16"]
[Round "4.21"]
[White "Aswinika Mani R"]
[Black "Gaszka, Zuzanna"]
[Result "1/2-1/2"]
[ECO "C50"]
[WhiteElo "1472"]
[BlackElo "1758"]
[Annotator "NA RC"]
[PlyCount "102"]
[EventDate "2023.11.13"]
[EventType "swiss"]
[EventCountry "ITA"]
[SourceTitle "playchess.com"]
[Source "ChessBase"]
[SourceQuality "1"]
[TimeControl "40/5400+30:1800+30"]

1. e4 {[%emt 0:00:05]} e5 {[%emt 0:00:05]} 2. Nf3 {[%emt 0:00:11]} Nc6 {[%emt 0:00:04]} 3. Bc4 {[%emt 0:00:04]} Nf6 {[%emt 0:00:04]} 4. d3 {[%emt 0:00:05]} Bc5 {[%emt 0:00:04]} 5. c3 {[%emt 0:00:08]} O-O {[%emt 0:00:06]} 6. O-O {[%emt 0:04:02]} d5 {[%emt 0:00:12]} 7. exd5 {[%emt 0:09:20]} Nxd5 {[%emt 0:00:12]} 8. b4 {[%emt 0:06:06]} Be7 {[%emt 0:06:38]} 9. b5 {[%emt 0:06:46]} Na5 {[%emt 0:00:29]} 10. Bxd5 {[%emt 0:03:31]} Qxd5 {[%emt 0:00:11]} 11. c4 {[%emt 0:00:16]} Qd8 {[%emt 0:08:04]} 12. Nc3 {[%emt 0:14:42]} c6 {[%emt 0:21:38]} 13. Qe2 {[%emt 0:06:08]} f6 {[%emt 0:02:28]} 14. Rd1 {[%emt 0:04:33]} cxb5 {[%emt 0:04:12]} 15. Nxb5 {[%emt 0:05:49]} a6 {[%emt 0:11:37]} 16. Nc3 {[%emt 0:01:02]} Bc5 {[%emt 0:01:37]} 17. Nd5 {[%emt 0:08:09]} Nc6 {[%emt 0:03:29]} 18. Be3 {[%emt 0:05:29]} Bxe3 {[%emt 0:01:36]} 19. Qxe3 {[%emt 0:00:32]} Bg4 {[%emt 0:03:17]} 20. Rdb1 {[%emt 0:05:30]} Bxf3 {[%emt 0:02:24]} 21. Qxf3 {[%emt 0:00:24]} Nd4 {[%emt 0:00:14]} 22. Qd1 {[%emt 0:00:28]} b5 {[%emt 0:02:38]} 23. a4 {[%emt 0:03:16]} bxc4 {[%emt 0:03:23]} 24. dxc4 {[%emt 0:00:22]} Rf7 {[%emt 0:01:52]} 25. Nb6 {[%emt 0:04:49]} Rb8 {[%emt 0:00:41]} 26. a5 {[%emt 0:00:41]} Rc7 {[%emt 0:01:04]} 27. h3 {[%emt 0:01:35]} Rc5 {[%emt 0:01:41]} 28. Kh1 {[%emt 0:04:27]} Qd6 {[%emt 0:03:06]} 29. Qa4 {[%emt 0:03:57]} Rd8 {[%emt 0:03:23]} 30. Nd5 {[%emt 0:00:13]} Rdc8 {[%emt 0:04:26]} 31. Rb6 {[%emt 0:01:03]} Qd8 {[%emt 0:01:18]} 32. Ne3 {[%emt 0:02:02]} f5 {[%emt 0:04:02]} 33. Rb7 {[%emt 0:00:36]} f4 {[%emt 0:02:38]} 34. Nd5 {[%emt 0:00:32]} Kh8 {[%emt 0:00:49]} 35. Nb6 {[%emt 0:00:32]} R8c7 {[%emt 0:00:59]} 36. Rxc7 {[%emt 0:00:07]} Rxc7 {[%emt 0:00:08]} 37. Rc1 {[%emt 0:00:41]} Rc5 {[%emt 0:00:14]} 38. Rb1 {[%emt 0:00:30]} Nc6 {[%emt 0:01:48]} 39. Rd1 {[%emt 0:00:34]} Nd4 {[%emt 0:00:31]} 40. Rb1 {[%emt 0:00:00]} h6 {[%emt 0:00:00]} 41. Qb4 {[%emt 0:01:55]} Rc7 {[%emt 0:10:45]} 42. Nd5 {[%emt 0:01:38]} Rc6 {[%emt 0:02:16]} 43. Ne7 {[%emt 0:05:34]} Re6 {[%emt 0:01:59]} 44. Nd5 {[%emt 0:02:56]} Kh7 {[%emt 0:00:23]} 45. Qd2 {[%emt 0:03:55]} Qg5 {[%emt 0:01:46]} 46. Rb6 {[%emt 0:01:11]} Rg6 {[%emt 0:00:42]} 47. Rxg6 {[%emt 0:00:28]} Qxg6 {[%emt 0:00:14]} 48. Nxf4 {[%emt 0:00:59]} Qb1+ {[%emt 0:01:22]} 49. Kh2 {[%emt 0:00:12]} Kg8 {[%emt 0:07:09]} 50. Ne2 {[%emt 0:01:30]} Qe4 {[%emt 0:00:59]} 51. Ng3 {[%emt 0:01:26]} Qc6 {[%emt 0:00:35]} 1/2-1/2